fUSD/lending_fUSD_20250812
["ID","MTS","AMOUNT","RATE_DAILY","PERIOD"]
[378707476,1754975432982,-500.0,0.00043824,30]
[378707477,1754975432991,-151.0,0.00043824,30]
[378707478,1754975433000,-215.0738,0.00043824,30]
[378707479,1754975433009,-500.0,0.00043824,30]
[378707480,1754975433018,-223.0315306,0.00043824,30]
[378707481,1754975433027,-500.0,0.00043824,30]
[378707482,1754975433036,-231.28369723,0.00043824,30]
[378707483,1754975433045,-239.84119403,0.00043824,30]
[378707485,1754975433055,-160.0,0.00043824,30]
[378707487,1754975433064,-248.71531821,0.00043824,30]
[378707489,1754975433073,-257.91778498,0.00043824,30]
[378707490,1754975433082,-267.46074303,0.00043824,30]
[378707492,1754975433091,-277.35679052,0.00043824,30]
[378707494,1754975433100,-287.61899177,0.00043824,30]
[378707496,1754975433109,-243.42302848,0.00043824,30]
[378707497,1754975433118,-298.26089446,0.00043824,30]
[378707498,1754975433127,-64.51204469,0.00043824,30]
[378707499,1754975433141,-244.78450287,0.00043824,30]
[378707500,1754975433151,-320.74051982,0.00043824,30]
[378707501,1754975433160,-332.60791905,0.00043824,30]
[378707502,1754975433169,-344.91441206,0.00043824,30]
[378707503,1754975433178,-250.0,0.00043824,30]
[378707504,1754975433188,-357.6762453,0.00043824,30]
[378707505,1754975433197,-250.0,0.00043824,30]
[378707506,1754975433206,-370.91026638,0.00043824,30]
[378707507,1754975433216,-250.0,0.00043824,30]
[378707508,1754975433226,-384.63394623,0.00043824,30]
[378707509,1754975433236,-250.0,0.00043824,30]
[378707510,1754975433245,-398.86540225,0.00043824,30]
[378707511,1754975433254,-250.0,0.00043824,30]
[378707512,1754975433263,-250.0,0.00043824,30]
[378707513,1754975433273,-250.0,0.00043824,30]
[378707514,1754975433282,-250.0,0.00043824,30]
[378707515,1754975433291,-250.0,0.00043824,30]
[378707516,1754975433300,-306.75231953,0.00043824,30]
[378707517,1754975433309,-611.81,0.00043824,30]
[378707518,1754975433319,-592.59,0.00043825,30]
[378707519,1754975433328,-262557.625211,0.00043825,3]
[378707520,1754975433337,-82366.18543183,0.00043825,3]
[378707521,1754975433349,-54375.74427517,0.00043825,3]
[378707522,1754975433359,-211.92619743,0.00043825,30]
[378707523,1754975433368,-598.64,0.00043832,30]
[378707524,1754975433378,-500.0,0.00043834,120]
[378707525,1754975433388,-500.0,0.00043834,120]
[378707526,1754975433398,-500.0,0.00043834,120]
[378707527,1754975433408,-500.0,0.00043834,120]
[378707528,1754975433417,-578.67771598,0.00043834,120]
[378707529,1754975433426,-153.0,0.00043835,7]
[378707530,1754975433436,-37611.75468114,0.00043835,2]
[378707531,1754975433446,-2314.30881006,0.00043835,2]
[378707532,1754975433455,-151.552124,0.00043835,14]
[378707533,1754975433465,-152.508696,0.00043835,14]
[378707534,1754975433475,-151.566368,0.00043835,14]
[378707535,1754975433484,-403.90475859,0.00043835,120]
[378707536,1754975433493,-400.0,0.00043835,120]
[378707537,1754975433502,-293.31220116,0.00043835,120]
[378707538,1754975433512,-171.890135,0.00043835,120]
[378707539,1754975433522,-231.8279424,0.00043835,120]
[378707540,1754975433531,-400.0,0.00043835,120]
[378707541,1754975433540,-637.476208,0.00043835,120]
[378707542,1754975433549,-400.0,0.00043835,120]
[378707543,1754975433559,-401.09249512,0.00043835,120]
[378707544,1754975433569,-401.58677163,0.00043835,120]
[378707545,1754975433578,-403.49194743,0.00043835,120]
[378707546,1754975433587,-151.0,0.00043835,14]
[378707547,1754975433596,-151.0,0.00043835,14]
[378707548,1754975433605,-422.1931504,0.00043835,120]
[378707549,1754975433614,-400.0,0.00043835,120]
[378707550,1754975433623,-403.16772781,0.00043835,120]
[378707551,1754975433632,-400.31042661,0.00043835,120]
[378707552,1754975433641,-400.0,0.00043835,120]
[378707553,1754975433650,-400.7676312,0.00043835,120]
[378707554,1754975433660,-404.0637457,0.00043835,120]
[378707555,1754975433669,-400.0,0.00043835,2]
[378707556,1754975433678,-402.13060707,0.00043835,120]
[378707557,1754975433687,-157.09152982,0.00043835,120]
[378707558,1754975433696,-400.0,0.00043835,120]
[378707559,1754975433705,-400.0,0.00043835,120]
[378707560,1754975433715,-400.0,0.00043835,120]
[378707561,1754975433724,-400.0,0.00043835,120]
[378707562,1754975433733,-400.72090912,0.00043835,120]
[378707563,1754975433743,-400.0,0.00043835,120]
[378707564,1754975433753,-203.06149179,0.00043835,2]
[378707565,1754975433762,-400.0,0.00043835,120]
[378707566,1754975433771,-402.09490932,0.00043835,120]
[378707567,1754975433780,-308.58213457,0.00043835,120]
[378707568,1754975433790,-151.0,0.00043835,14]
[378707569,1754975433799,-152.817249,0.00043835,14]
[378707570,1754975433808,-400.0,0.00043835,120]
[378707571,1754975433817,-400.0,0.00043835,120]
[378707572,1754975433826,-401.02001705,0.00043835,90]
[378707573,1754975433835,-400.0,0.00043835,120]
[378707574,1754975433845,-400.0,0.00043835,120]
[378707575,1754975433854,-400.0,0.00043835,120]
[378707576,1754975433863,-400.0,0.00043835,120]
[378707577,1754975433872,-404.12382993,0.00043835,120]
[378707578,1754975433881,-400.0,0.00043835,120]
[378707579,1754975433890,-400.0,0.00043835,120]
[378707580,1754975433899,-400.0,0.00043835,120]
[378707581,1754975433909,-400.0,0.00043835,120]
[378707582,1754975433918,-400.0,0.00043835,120]
[378707583,1754975433927,-539.4068882,0.00043835,120]
[378707584,1754975433936,-400.0,0.00043835,120]
[378707585,1754975433946,-400.0,0.00043835,120]
[378707586,1754975433955,-400.0,0.00043835,120]
[378707587,1754975433964,-400.0,0.00043835,120]
[378707588,1754975433973,-400.0,0.00043835,120]
[378707589,1754975433982,-400.0,0.00043835,120]
[378707590,1754975433991,-400.0,0.00043835,120]
[378707591,1754975434000,-400.0,0.00043835,120]
[378707592,1754975434009,-400.0,0.00043835,120]
[378707593,1754975434019,-430.72913127,0.00043835,120]
[378707594,1754975434028,-400.0,0.00043835,120]
[378707595,1754975434037,-400.0,0.00043835,120]
[378707596,1754975434046,-400.0,0.00043835,120]
[378707597,1754975434055,-403.41067742,0.00043835,120]
[378707598,1754975434065,-400.0,0.00043835,120]
[378707599,1754975434074,-401.4276871,0.00043835,120]
[378707600,1754975434083,-404.09172314,0.00043835,120]
[378707601,1754975434092,-403.81148369,0.00043835,120]
[378707602,1754975434102,-402.90628386,0.00043835,120]
[378707603,1754975434111,-400.0,0.00043835,120]
[378707604,1754975434121,-534.96,0.00043835,120]
[378707605,1754975434130,-478.89304602,0.00043835,120]
[378707606,1754975434139,-400.0,0.00043835,120]
[378707607,1754975434149,-400.0,0.00043835,120]
[378707608,1754975434158,-464.86887355,0.00043835,120]
[378707609,1754975434168,-400.0,0.00043835,120]
[378707610,1754975434177,-403.87925866,0.00043835,120]
[378707611,1754975434187,-400.0,0.00043835,120]
[378707612,1754975434196,-406.22835235,0.00043835,120]
[378707613,1754975434205,-400.0,0.00043835,120]
[378707614,1754975434214,-402.45765589,0.00043835,120]
[378707615,1754975434223,-405.60696385,0.00043835,120]
[378707616,1754975434233,-178.14265247,0.00043835,120]
[378707617,1754975434243,-400.0,0.00043835,120]
[378707618,1754975434253,-400.0,0.00043835,120]
[378707619,1754975434262,-400.0,0.00043835,120]
[378707620,1754975434272,-400.0,0.00043835,120]
[378707621,1754975434281,-509.5866785,0.00043835,120]
[378707622,1754975434290,-400.0,0.00043835,120]
[378707623,1754975434299,-400.0,0.00043835,120]
[378707624,1754975434308,-402.02479158,0.00043835,120]
[378707625,1754975434317,-400.0,0.00043835,120]
[378707626,1754975434330,-500.0,0.00043835,2]
[378707627,1754975434339,-502.81329795,0.00043835,2]
[378707628,1754975434348,-400.0,0.00043835,120]
[378707629,1754975434358,-406.45486335,0.00043835,120]
[378707630,1754975434367,-400.0,0.00043835,120]
[378707631,1754975434377,-400.0,0.00043835,120]
[378707632,1754975434386,-529.76815895,0.00043835,120]
[378707633,1754975434399,-377.81084382,0.00043835,120]
[378707634,1754975434408,-157.962632,0.00043835,14]
[378707635,1754975434417,-400.0,0.00043835,120]
[378707636,1754975434426,-400.0,0.00043835,120]
[378707637,1754975434436,-400.0,0.00043835,120]
[378707638,1754975434446,-400.0,0.00043835,120]
[378707639,1754975434455,-400.0,0.00043835,120]
[378707640,1754975434464,-402.03635268,0.00043835,120]
[378707641,1754975434474,-402.23770652,0.00043835,120]
[378707642,1754975434483,-400.0,0.00043835,120]
[378707643,1754975434493,-402.77537621,0.00043835,120]
[378707644,1754975434502,-405.76977324,0.00043835,120]
[378707645,1754975434511,-400.0,0.00043835,120]
[378707646,1754975434520,-400.0,0.00043835,120]
[378707647,1754975434529,-402.28782456,0.00043835,120]
[378707648,1754975434539,-403.19830418,0.00043835,120]
[378707649,1754975434548,-400.0,0.00043835,120]
[378707650,1754975434557,-400.0,0.00043835,120]
[378707651,1754975434567,-400.0,0.00043835,120]
[378707652,1754975434576,-400.0,0.00043835,120]
[378707653,1754975434585,-400.0,0.00043835,120]
[378707654,1754975434594,-400.0,0.00043835,120]
[378707655,1754975434603,-405.7214315,0.00043835,120]
[378707656,1754975434613,-400.0,0.00043835,120]
[378707657,1754975434622,-496.436322,0.00043835,120]
[378707658,1754975434631,-400.0,0.00043835,120]
[378707659,1754975434641,-402.44390274,0.00043835,120]
[378707660,1754975434650,-405.72843972,0.00043835,120]
[378707661,1754975434660,-400.0,0.00043835,120]
[378707662,1754975434669,-400.72113563,0.00043835,120]
[378707663,1754975434678,-401.06955557,0.00043835,120]
[378707664,1754975434688,-400.0,0.00043835,120]
[378707665,1754975434698,-400.0,0.00043835,120]
[378707666,1754975434708,-151.0,0.00043835,14]
[378707667,1754975434717,-405.66740287,0.00043835,120]
[378707668,1754975434728,-403.14879674,0.00043835,120]
[378707669,1754975434737,-400.0,0.00043835,120]
[378707670,1754975434747,-400.0,0.00043835,120]
[378707671,1754975434756,-400.0,0.00043835,120]
[378707672,1754975434765,-425.50397913,0.00043835,120]
[378707673,1754975434775,-402.72571745,0.00043835,120]
[378707674,1754975434785,-400.0,0.00043835,120]
[378707675,1754975434794,-400.0,0.00043835,120]
[378707676,1754975434803,-400.0,0.00043835,120]
[378707677,1754975434812,-400.0,0.00043835,120]
[378707678,1754975434821,-406.4589355,0.00043835,120]
[378707679,1754975434830,-400.0,0.00043835,120]
[378707680,1754975434839,-400.0,0.00043835,120]
[378707681,1754975434848,-323.55531123,0.00043835,120]
[378707682,1754975434858,-400.0,0.00043835,120]
[378707683,1754975434867,-400.0,0.00043835,120]
[378707684,1754975434876,-400.0,0.00043835,120]
[378707685,1754975434885,-406.40385501,0.00043835,120]
[378707686,1754975434894,-400.0,0.00043835,120]
[378707687,1754975434904,-419.33138847,0.00043835,120]
[378707688,1754975434913,-412.64066179,0.00043835,120]
[378707689,1754975434922,-406.95959101,0.00043835,120]
[378707690,1754975434931,-401.66428399,0.00043835,120]
[378707691,1754975434941,-404.72373325,0.00043835,120]
[378707692,1754975434950,-400.0,0.00043835,120]
[378707693,1754975434959,-400.0,0.00043835,120]
[378707694,1754975434968,-411.15313719,0.00043835,60]
[378707695,1754975434977,-402.73889935,0.00043835,120]
[378707696,1754975434986,-325.47431579,0.00043835,120]
[378707697,1754975434995,-377.20868995,0.00043835,120]
[378707698,1754975435005,-400.0,0.00043835,120]
[378707699,1754975435014,-402.51036757,0.00043835,120]
[378707700,1754975435023,-408.86993537,0.00043835,120]
[378707701,1754975435032,-400.0,0.00043835,120]
[378707702,1754975435041,-400.0,0.00043835,120]
[378707703,1754975435050,-402.45209717,0.00043835,120]
[378707704,1754975435059,-402.2389055,0.00043835,120]
[378707705,1754975435068,-400.0,0.00043835,120]
[378707706,1754975435077,-400.6154702,0.00043835,120]
[378707707,1754975435086,-400.0,0.00043835,120]
[378707708,1754975435095,-404.36968855,0.00043835,120]
[378707709,1754975435104,-400.0,0.00043835,120]
[378707710,1754975435113,-400.0,0.00043835,120]
[378707711,1754975435123,-410.94262199,0.00043835,120]
[378707712,1754975435132,-400.0,0.00043835,120]
[378707713,1754975435141,-406.05938027,0.00043835,120]
[378707714,1754975435150,-462.78370245,0.00043835,120]
[378707715,1754975435159,-400.0,0.00043835,120]
[378707716,1754975435178,-406.36611687,0.00043835,120]
[378707717,1754975435188,-413.74609999,0.00043835,120]
[378707718,1754975435197,-402.80522126,0.00043835,120]
[378707719,1754975435214,-412.89230901,0.00043835,120]
[378707720,1754975435233,-411.02657526,0.00043835,120]
[378707721,1754975435243,-408.02933706,0.00043835,120]
[378707722,1754975435252,-409.8780227,0.00043835,120]
[378707723,1754975435261,-543.3784788,0.00043835,120]
[378707724,1754975435271,-500.0,0.00043835,120]
[378707725,1754975435280,-500.0,0.00043835,120]
[378707726,1754975435289,-649.03817722,0.00043835,120]
[378707727,1754975435299,-401.80465595,0.00043835,120]
[378707728,1754975435308,-420.33262444,0.00043835,120]
[378707729,1754975435317,-400.0,0.00043835,120]
[378707730,1754975435326,-403.40461441,0.00043835,120]
[378707731,1754975435335,-400.0,0.00043835,120]
[378707732,1754975435345,-404.95383237,0.00043835,120]
[378707733,1754975435354,-401.32707199,0.00043835,120]
[378707734,1754975435363,-400.0,0.00043835,2]
[378707735,1754975435372,-400.0,0.00043835,120]
[378707736,1754975435381,-404.24696135,0.00043835,120]
[378707737,1754975435394,-400.0,0.00043835,120]
[378707738,1754975435403,-400.0,0.00043835,120]
[378707739,1754975435412,-400.0,0.00043835,120]
[378707740,1754975435422,-407.87789089,0.00043835,120]
[378707741,1754975435431,-400.0,0.00043835,120]
[378707742,1754975435440,-406.42746766,0.00043835,120]
[378707743,1754975435450,-416.2681652,0.00043835,120]
[378707744,1754975435459,-405.04691032,0.00043835,120]
[378707745,1754975435469,-801.89227392,0.00043835,2]
[378707746,1754975435625,-397.68047573,0.00043835,120]
[378707747,1754975435635,-400.0,0.00043835,120]
[378707748,1754975435644,-400.0,0.00043835,120]
[378707749,1754975435653,-433.33887215,0.00043835,120]
[378707750,1754975435663,-411.62346802,0.00043835,120]
[378707751,1754975435672,-406.16678307,0.00043835,120]
[378707752,1754975435682,-403.39920613,0.00043835,120]
[378707753,1754975435692,-400.0,0.00043835,120]
[378707754,1754975435702,-837.09,0.00043835,120]
[378707755,1754975435711,-152.471953,0.00043835,14]
[378707756,1754975435720,-403.93405965,0.00043835,120]
[378707757,1754975435730,-403.16938892,0.00043835,120]
[378707758,1754975435739,-427.11947128,0.00043835,120]
[378707759,1754975435748,-409.01598846,0.00043835,120]
[378707760,1754975435758,-268.21866896,0.00043835,14]
[378707761,1754975435767,-409.14493932,0.00043835,120]
[378707762,1754975435776,-400.0,0.00043835,120]
[378707763,1754975435785,-151.0,0.00043835,14]
[378707764,1754975435794,-154.570071,0.00043835,14]
[378707765,1754975435803,-423.53414223,0.00043835,120]
[378707766,1754975435812,-400.0,0.00043835,120]
[378707767,1754975435821,-403.01714787,0.00043835,120]
[378707768,1754975435830,-400.0,0.00043835,120]
[378707769,1754975435839,-400.0,0.00043835,120]
[378707770,1754975435849,-465.73050387,0.00043835,120]
[378707771,1754975435859,-400.0,0.00043835,120]
[378707772,1754975435868,-405.55805764,0.00043835,120]
[378707773,1754975435877,-400.0,0.00043835,120]
[378707774,1754975435886,-405.67853601,0.00043835,120]
[378707775,1754975435895,-406.76602269,0.00043835,120]
[378707776,1754975435904,-402.72562461,0.00043835,120]
[378707777,1754975435912,-400.0,0.00043835,120]
[378707778,1754975435922,-400.0,0.00043835,120]
[378707779,1754975435931,-400.0,0.00043835,120]
[378707780,1754975435940,-400.0,0.00043835,120]
[378707781,1754975435949,-400.0,0.00043835,120]
[378707782,1754975435959,-400.0,0.00043835,120]
[378707783,1754975435968,-403.31428855,0.00043835,120]
[378707784,1754975435977,-400.0,0.00043835,120]
[378707785,1754975435986,-410.59977714,0.00043835,120]
[378707786,1754975435995,-400.0,0.00043835,120]
[378707787,1754975436004,-409.74682507,0.00043835,120]
[378707788,1754975436013,-406.80435737,0.00043835,120]
[378707789,1754975436022,-408.42409088,0.00043835,120]
[378707790,1754975436031,-402.43832754,0.00043835,120]
[378707791,1754975436041,-404.21774611,0.00043835,120]
[378707792,1754975436050,-401.2356724,0.00043835,120]
[378707793,1754975436059,-400.0,0.00043835,120]
[378707794,1754975436068,-541.59554342,0.00043835,120]
[378707795,1754975436077,-420.11286213,0.00043835,120]
[378707796,1754975436086,-400.0,0.00043835,120]
[378707797,1754975436095,-400.0,0.00043835,120]
[378707798,1754975436104,-400.0,0.00043835,120]
[378707799,1754975436113,-375.84277751,0.00043835,120]
[378707800,1754975436123,-400.0,0.00043835,120]
[378707801,1754975436132,-401.98423475,0.00043835,120]
[378707802,1754975436141,-400.0,0.00043835,120]
[378707803,1754975436150,-400.0,0.00043835,120]
[378707804,1754975436160,-402.46565294,0.00043835,120]
[378707805,1754975436169,-400.0,0.00043835,120]
[378707806,1754975436178,-400.0,0.00043835,120]
[378707807,1754975436187,-400.0,0.00043835,120]
[378707808,1754975436196,-402.73980684,0.00043835,120]
[378707809,1754975436205,-400.0,0.00043835,120]
[378707810,1754975436214,-400.0,0.00043835,120]
[378707811,1754975436223,-400.0,0.00043835,120]
[378707812,1754975436233,-400.0,0.00043835,120]
[378707813,1754975436242,-400.0,0.00043835,120]
[378707814,1754975436251,-413.21347948,0.00043835,120]
[378707815,1754975436260,-400.0,0.00043835,120]
[378707816,1754975436269,-151.0,0.00043835,14]
[378707817,1754975436278,-400.0,0.00043835,120]
[378707818,1754975436287,-410.35733673,0.00043835,120]
[378707819,1754975436296,-400.0,0.00043835,120]
[378707820,1754975436306,-400.0,0.00043835,120]
[378707821,1754975436315,-400.0,0.00043835,120]
[378707822,1754975436324,-400.0,0.00043835,120]
[378707823,1754975436333,-400.0,0.00043835,120]
[378707824,1754975436343,-401.43740582,0.00043835,120]
[378707825,1754975436352,-400.0,0.00043835,120]
[378707826,1754975436362,-406.41452154,0.00043835,120]
[378707827,1754975436371,-400.0,0.00043835,120]
[378707828,1754975436380,-400.0,0.00043835,120]
[378707829,1754975436394,-403.54708001,0.00043835,120]
[378707830,1754975436403,-402.96235969,0.00043835,120]
[378707831,1754975436413,-400.0,0.00043835,120]
[378707832,1754975436422,-537.93670809,0.00043835,120]
[378707833,1754975436431,-400.0,0.00043835,120]
[378707834,1754975436440,-402.14174197,0.00043835,120]
[378707835,1754975436450,-400.0,0.00043835,120]
[378707836,1754975436459,-400.0,0.00043835,120]
[378707837,1754975436469,-400.0,0.00043835,120]
[378707838,1754975436479,-400.0,0.00043835,120]
[378707839,1754975436490,-402.04548733,0.00043835,120]
[378707840,1754975436500,-400.0,0.00043835,120]
[378707841,1754975436509,-400.0,0.00043835,120]
[378707842,1754975436519,-400.0,0.00043835,120]
[378707843,1754975436528,-400.0,0.00043835,120]
[378707844,1754975436537,-399.71770967,0.00043835,120]
[378707845,1754975436546,-400.0,0.00043835,120]
[378707846,1754975436556,-400.0,0.00043835,120]
[378707847,1754975436565,-400.0,0.00043835,120]
[378707848,1754975436574,-402.65360027,0.00043835,120]
[378707849,1754975436583,-418.67906263,0.00043835,120]
[378707850,1754975436593,-400.0,0.00043835,120]
[378707851,1754975436602,-400.0,0.00043835,120]
[378707852,1754975436611,-403.23205248,0.00043835,120]
[378707853,1754975436620,-405.20330268,0.00043835,120]
[378707854,1754975436629,-400.0,0.00043835,120]
[378707855,1754975436638,-400.0,0.00043835,120]
[378707856,1754975436647,-402.71782759,0.00043835,120]
[378707857,1754975436656,-403.48075214,0.00043835,120]
[378707858,1754975436665,-400.0,0.00043835,120]
[378707859,1754975436675,-400.99891386,0.00043835,120]
[378707860,1754975436684,-400.0,0.00043835,120]
[378707861,1754975436693,-400.0,0.00043835,120]
[378707862,1754975436702,-400.0,0.00043835,120]
[378707863,1754975436711,-400.0,0.00043835,120]
[378707864,1754975436721,-400.0,0.00043835,120]
[378707865,1754975436730,-397.32983398,0.00043835,120]
[378707866,1754975436739,-400.0,0.00043835,120]
[378707867,1754975436748,-400.0,0.00043835,120]
[378707868,1754975436757,-169.40149829,0.00043835,120]
[378707869,1754975436766,-400.0,0.00043835,120]
[378707870,1754975436775,-400.0,0.00043835,120]
[378707871,1754975436784,-400.0,0.00043835,120]
[378707872,1754975436793,-403.27374458,0.00043835,120]
[378707873,1754975436802,-400.0,0.00043835,120]
[378707874,1754975436811,-404.41208033,0.00043835,120]
[378707875,1754975436820,-400.0,0.00043835,120]
[378707876,1754975436830,-400.0,0.00043835,120]
[378707877,1754975436839,-400.0,0.00043835,120]
[378707878,1754975436847,-400.0,0.00043835,120]
[378707879,1754975436856,-400.0,0.00043835,120]
[378707880,1754975436865,-403.25771943,0.00043835,120]
[378707881,1754975436874,-151.0,0.00043835,14]
[378707882,1754975436883,-260.39091,0.00043835,14]
[378707883,1754975436893,-400.0,0.00043835,120]
[378707884,1754975436902,-400.0,0.00043835,120]
[378707885,1754975436911,-400.0,0.00043835,120]
[378707886,1754975436920,-371.99450837,0.00043835,120]
[378707887,1754975436929,-401.3856143,0.00043835,120]
[378707888,1754975436938,-400.0,0.00043835,120]
[378707889,1754975436947,-400.0,0.00043835,120]
[378707890,1754975436956,-400.0,0.00043835,120]
[378707891,1754975436965,-400.0,0.00043835,120]
[378707892,1754975436975,-400.0,0.00043835,120]
[378707893,1754975436983,-400.0,0.00043835,120]
[378707894,1754975436992,-405.18166725,0.00043835,120]
[378707895,1754975437001,-289.16756786,0.00043835,120]
[378707896,1754975437010,-400.0,0.00043835,120]
[378707897,1754975437019,-400.0,0.00043835,120]
[378707898,1754975437028,-402.57069759,0.00043835,120]
[378707899,1754975437036,-400.0,0.00043835,120]
[378707900,1754975437045,-400.0,0.00043835,120]
[378707901,1754975437054,-166.48999363,0.00043835,120]
[378707902,1754975437064,-406.88155905,0.00043835,120]
[378707903,1754975437073,-400.0,0.00043835,120]
[378707904,1754975437081,-402.15105005,0.00043835,120]
[378707905,1754975437090,-411.7452108,0.00043835,120]
[378707906,1754975437099,-400.0,0.00043835,120]
[378707907,1754975437107,-400.0,0.00043835,120]
[378707908,1754975437116,-405.07298518,0.00043835,120]
[378707909,1754975437125,-400.0,0.00043835,120]
[378707910,1754975437134,-410.31563425,0.00043835,120]
[378707911,1754975437143,-400.0,0.00043835,120]
[378707912,1754975437152,-402.23437237,0.00043835,120]
[378707913,1754975437161,-401.76852027,0.00043835,120]
[378707914,1754975437170,-400.0,0.00043835,120]
[378707915,1754975437179,-400.0,0.00043835,120]
[378707916,1754975437188,-400.0,0.00043835,120]
[378707917,1754975437196,-400.0,0.00043835,120]
[378707918,1754975437205,-401.37086701,0.00043835,120]
[378707919,1754975437214,-400.0,0.00043835,120]
[378707920,1754975437224,-402.11811009,0.00043835,120]
[378707921,1754975437232,-400.0,0.00043835,120]
[378707922,1754975437242,-400.83915085,0.00043835,120]
[378707923,1754975437254,-407.18091556,0.00043835,120]
[378707924,1754975437263,-400.0,0.00043835,120]
[378707925,1754975437273,-400.0,0.00043835,120]
[378707926,1754975437282,-400.0,0.00043835,120]
[378707927,1754975437291,-400.0,0.00043835,120]
[378707928,1754975437301,-400.0,0.00043835,120]
[378707929,1754975437310,-401.51538086,0.00043835,120]
[378707930,1754975437319,-400.0,0.00043835,120]
[378707931,1754975437329,-405.37112928,0.00043835,120]
[378707932,1754975437339,-400.0,0.00043835,120]
[378707933,1754975437348,-400.99618457,0.00043835,120]
[378707934,1754975437356,-400.0,0.00043835,120]
[378707935,1754975437366,-400.0,0.00043835,120]
[378707936,1754975437375,-400.0,0.00043835,120]
[378707937,1754975437384,-400.0,0.00043835,120]
[378707938,1754975437397,-400.0,0.00043835,120]
[378707939,1754975437406,-400.0,0.00043835,120]
[378707940,1754975437415,-400.0,0.00043835,120]
[378707941,1754975437424,-400.0,0.00043835,120]
[378707942,1754975437434,-400.0,0.00043835,120]
[378707943,1754975437443,-401.75554417,0.00043835,120]
[378707944,1754975437452,-400.0,0.00043835,120]
[378707945,1754975437461,-400.0,0.00043835,120]
[378707946,1754975437471,-402.57885093,0.00043835,120]
[378707947,1754975437480,-400.0,0.00043835,120]
[378707948,1754975437489,-400.0,0.00043835,120]
[378707949,1754975437499,-400.0,0.00043835,120]
[378707950,1754975437508,-400.0,0.00043835,120]
[378707951,1754975437517,-400.0,0.00043835,120]
[378707952,1754975437525,-400.0,0.00043835,120]
[378707953,1754975437534,-403.0632503,0.00043835,120]
[378707954,1754975437543,-400.0,0.00043835,120]
[378707955,1754975437552,-400.0,0.00043835,120]
[378707956,1754975437561,-400.0,0.00043835,120]
[378707957,1754975437570,-403.25806399,0.00043835,120]
[378707958,1754975437578,-401.03671941,0.00043835,120]
[378707959,1754975437587,-400.0,0.00043835,120]
[378707960,1754975437596,-415.61528467,0.00043835,120]
[378707961,1754975437605,-400.0,0.00043835,120]
[378707962,1754975437614,-400.0,0.00043835,120]
[378707963,1754975437623,-400.0,0.00043835,120]
[378707964,1754975437632,-400.0,0.00043835,120]
[378707966,1754975437641,-400.0,0.00043835,120]
[378707968,1754975437651,-402.00832813,0.00043835,120]
[378707969,1754975437660,-517.4634574,0.00043835,120]
[378707970,1754975437669,-400.0,0.00043835,120]
[378707971,1754975437678,-400.82917343,0.00043835,120]
[378707972,1754975437687,-400.0,0.00043835,120]
[378707973,1754975437696,-402.83835096,0.00043835,120]
[378707974,1754975437705,-406.59,0.00043835,120]
[378707975,1754975437714,-402.45849365,0.00043835,120]
[378707976,1754975437723,-395.55813449,0.00043835,120]
[378707977,1754975437732,-401.80167816,0.00043835,120]
[378707978,1754975437741,-400.0,0.00043835,120]
[378707979,1754975437750,-400.0,0.00043835,120]
[378707980,1754975437759,-400.0,0.00043835,120]
[378707981,1754975437768,-400.0,0.00043835,120]
[378707982,1754975437776,-400.0,0.00043835,120]
[378707983,1754975437785,-400.0,0.00043835,120]